[Event "Titled Tuesday Blitz May 23 Early 2023"]
[White "Martinez, Shawn"]
[Black "Tarnowska, Aleksandra"]
[WhiteFideId "2039770"]
[BlackFideId "1180967"]
[WhiteElo "2174"]
[BlackElo "1776"]
[Result "1-0"]
[Round "05"]
[TimeControl "180+2"]
[Date "2023.05.23"]
[WhiteClock "0:00:55"]
[BlackClock "0:00:01"]

1. e4 {[%clk 0:02:58]}  c5 {[%clk 0:03:00]} 2. Nc3 {[%clk 0:02:57]}  d6 {[%clk 0:02:55]} 3. Bc4 {[%clk 0:02:56]}  g6 {[%clk 0:02:53]} 4. d3 {[%clk 0:02:56]}  Bg7 {[%clk 0:02:53]} 5. f4 {[%clk 0:02:56]}  Nf6 {[%clk 0:02:52]} 6. Nf3 {[%clk 0:02:55]}  O-O {[%clk 0:02:46]} 7. O-O {[%clk 0:02:53]}  a6 {[%clk 0:02:45]} 8. a4 {[%clk 0:02:51]}  Nc6 {[%clk 0:02:39]} 9. Qe1 {[%clk 0:02:44]}  Nd4 {[%clk 0:02:32]} 10. Nxd4 {[%clk 0:02:38]}  cxd4 {[%clk 0:02:32]} 11. Nd5 {[%clk 0:02:37]}  Nxd5 {[%clk 0:02:23]} 12. Bxd5 {[%clk 0:02:37]}  e6 {[%clk 0:02:20]} 13. Bb3 {[%clk 0:02:29]}  Bd7 {[%clk 0:02:00]} 14. f5 {[%clk 0:02:22]}  exf5 {[%clk 0:01:57]} 15. exf5 {[%clk 0:02:22]}  Bxf5 {[%clk 0:01:54]} 16. Qg3 {[%clk 0:02:21]}  Be5 {[%clk 0:01:24]} 17. Bf4 {[%clk 0:02:17]}  Qf6 {[%clk 0:01:01]} 18. Rf2 {[%clk 0:02:11]}  Rae8 {[%clk 0:00:57]} 19. Raf1 {[%clk 0:02:11]}  Bxf4 {[%clk 0:00:43]} 20. Rxf4 {[%clk 0:02:09]}  Re5 {[%clk 0:00:39]} 21. h4 {[%clk 0:02:04]}  h5 {[%clk 0:00:38]} 22. Rxd4 {[%clk 0:01:58]}  Kh7 {[%clk 0:00:29]} 23. Rdf4 {[%clk 0:01:53]}  Rfe8 {[%clk 0:00:25]} 24. Qf3 {[%clk 0:01:47]}  Re2 {[%clk 0:00:14]} 25. Qxb7 {[%clk 0:01:30]}  R8e7 {[%clk 0:00:09]} 26. Qd5 {[%clk 0:01:28]}  Rd2 {[%clk 0:00:06]} 27. Qf3 {[%clk 0:01:26]}  Ree2 {[%clk 0:00:06]} 28. d4 {[%clk 0:01:19]}  Qe7 {[%clk 0:00:04]} 29. Rxf5 {[%clk 0:01:15]}  gxf5 {[%clk 0:00:04]} 30. Qxf5+ {[%clk 0:01:15]}  Kg7 {[%clk 0:00:04]} 31. Bd5 {[%clk 0:01:09]}  Qe3+ {[%clk 0:00:03]} 32. Kh1 {[%clk 0:01:08]}  Kh8 {[%clk 0:00:01]} 33. Qxh5+ {[%clk 0:01:06]}  Kg7 {[%clk 0:00:01]} 34. Qxf7+ {[%clk 0:01:06]}  Kh6 {[%clk 0:00:01]} 35. Rf6# {[%clk 0:00:55]} 1-0


[Site "https://www.chess.com"]

[Event "Titled Tuesday Blitz May 23 Early 2023"]
[White "Dilmukhametov, Artur"]
[Black "Sanudula, K M Dahamdi"]
[WhiteFideId "24179922"]
[BlackFideId "9932470"]
[WhiteElo "2242"]
[BlackElo "1556"]
[Result "0-1"]
[Round "05"]
[TimeControl "180+2"]
[Date "2023.05.23"]
[WhiteClock "0:02:08"]
[BlackClock "0:02:03"]

1. e4 {[%clk 0:02:57]}  d5 {[%clk 0:02:59]} 2. exd5 {[%clk 0:02:56]}  Qxd5 {[%clk 0:02:59]} 3. Nc3 {[%clk 0:02:57]}  Qa5 {[%clk 0:02:52]} 4. Nf3 {[%clk 0:02:55]}  Nf6 {[%clk 0:02:35]} 5. Bc4 {[%clk 0:02:54]}  c6 {[%clk 0:02:35]} 6. O-O {[%clk 0:02:54]}  Bg4 {[%clk 0:02:35]} 7. Re1 {[%clk 0:02:53]}  e6 {[%clk 0:02:35]} 8. d4 {[%clk 0:02:51]}  Bd6 {[%clk 0:02:35]} 9. Bg5 {[%clk 0:02:49]}  Bxf3 {[%clk 0:02:34]} 10. Qxf3 {[%clk 0:02:48]}  Qxg5 {[%clk 0:02:34]} 11. Bxe6 {[%clk 0:02:41]}  O-O {[%clk 0:02:23]} 12. Bb3 {[%clk 0:02:37]}  Qf4 {[%clk 0:02:23]} 13. Qh3 {[%clk 0:02:36]}  Ng4 {[%clk 0:02:19]} 14. Re4 {[%clk 0:02:25]}  Nxf2 {[%clk 0:02:08]} 15. Rxf4 {[%clk 0:02:23]}  Nxh3+ {[%clk 0:02:08]} 16. gxh3 {[%clk 0:02:22]}  Bxf4 {[%clk 0:02:08]} 17. Ne4 {[%clk 0:02:20]}  Nd7 {[%clk 0:02:05]} 18. Kf2 {[%clk 0:02:19]}  Nf6 {[%clk 0:02:05]} 19. Nxf6+ {[%clk 0:02:17]}  gxf6 {[%clk 0:02:05]} 20. Rg1+ {[%clk 0:02:17]}  Kh8 {[%clk 0:02:05]} 21. c3 {[%clk 0:02:17]}  Rae8 {[%clk 0:02:04]} 22. Bc2 {[%clk 0:02:08]}  Be3+ {[%clk 0:02:03]} 0-1


[Site "https://www.chess.com"]

[Event "Titled Tuesday Blitz May 23 Early 2023"]
[White "Lohani, Sujana"]
[Black "Clawitter, Craig"]
[WhiteFideId "12311987"]
[BlackFideId "2023105"]
[WhiteElo "1718"]
[BlackElo "2241"]
[Result "0-1"]
[Round "05"]
[TimeControl "180+2"]
[Date "2023.05.23"]
[WhiteClock "0:00:00"]
[BlackClock "0:00:05"]

1. d4 {[%clk 0:02:53]}  e6 {[%clk 0:02:57]} 2. Nf3 {[%clk 0:02:51]}  Nf6 {[%clk 0:02:57]} 3. c4 {[%clk 0:02:43]}  c5 {[%clk 0:02:53]} 4. g3 {[%clk 0:02:44]}  cxd4 {[%clk 0:02:50]} 5. Nxd4 {[%clk 0:02:44]}  d5 {[%clk 0:02:49]} 6. cxd5 {[%clk 0:02:43]}  Qxd5 {[%clk 0:02:47]} 7. Nf3 {[%clk 0:02:01]}  Qxd1+ {[%clk 0:02:40]} 8. Kxd1 {[%clk 0:02:00]}  Bc5 {[%clk 0:02:31]} 9. e3 {[%clk 0:01:54]}  Nc6 {[%clk 0:02:29]} 10. Bb5 {[%clk 0:01:47]}  Bd7 {[%clk 0:02:25]} 11. Ke2 {[%clk 0:01:42]}  O-O-O {[%clk 0:02:23]} 12. Nc3 {[%clk 0:01:40]}  Ng4 {[%clk 0:01:59]} 13. h3 {[%clk 0:01:36]}  Nge5 {[%clk 0:01:58]} 14. Nxe5 {[%clk 0:01:25]}  Nxe5 {[%clk 0:01:58]} 15. Bxd7+ {[%clk 0:01:24]}  Rxd7 {[%clk 0:01:59]} 16. Ne4 {[%clk 0:01:22]}  Be7 {[%clk 0:01:47]} 17. Bd2 {[%clk 0:01:20]}  Rhd8 {[%clk 0:01:32]} 18. Rhc1+ {[%clk 0:01:14]}  Kb8 {[%clk 0:01:26]} 19. Rc2 {[%clk 0:01:04]}  f5 {[%clk 0:01:07]} 20. Nc3 {[%clk 0:00:59]}  Nd3 {[%clk 0:00:58]} 21. Rd1 {[%clk 0:00:53]}  Bf6 {[%clk 0:00:50]} 22. Nb5 {[%clk 0:00:32]}  Nxb2 {[%clk 0:00:45]} 23. Rb1 {[%clk 0:00:28]}  Nc4 {[%clk 0:00:34]} 24. Bb4 {[%clk 0:00:22]}  Nb6 {[%clk 0:00:23]} 25. Bd6+ {[%clk 0:00:16]}  Rxd6 {[%clk 0:00:24]} 26. Nxd6 {[%clk 0:00:14]}  Rxd6 {[%clk 0:00:24]} 27. Rd1 {[%clk 0:00:11]}  Nd5 {[%clk 0:00:14]} 28. Kf3 {[%clk 0:00:06]}  Ra6 {[%clk 0:00:11]} 29. Rdc1 {[%clk 0:00:05]}  b6 {[%clk 0:00:09]} 30. Rc6 {[%clk 0:00:05]}  Rxa2 {[%clk 0:00:08]} 31. Rxe6 {[%clk 0:00:04]}  a5 {[%clk 0:00:06]} 32. Rcc6 {[%clk 0:00:00]}  Rd2 {[%clk 0:00:05]} 0-1


[Site "https://www.chess.com"]

[Event "Titled Tuesday Blitz May 23 Early 2023"]
[White "Bortnyk, Olexandr"]
[Black "Matlakov, Maxim"]
[WhiteFideId "14120828"]
[BlackFideId "4168003"]
[WhiteElo "2734"]
[BlackElo "2666"]
[Result "1-0"]
[Round "06"]
[TimeControl "180+2"]
[Date "2023.05.23"]
[WhiteClock "0:01:20"]
[BlackClock "0:00:08"]

1. d4 {[%clk 0:03:00]}  Nf6 {[%clk 0:02:58]} 2. Nc3 {[%clk 0:03:01]}  d5 {[%clk 0:02:58]} 3. Bf4 {[%clk 0:03:02]}  c5 {[%clk 0:02:46]} 4. e4 {[%clk 0:03:02]}  dxe4 {[%clk 0:02:40]} 5. dxc5 {[%clk 0:02:59]}  Qa5 {[%clk 0:02:27]} 6. Qd2 {[%clk 0:02:59]}  Nc6 {[%clk 0:02:19]} 7. O-O-O {[%clk 0:02:59]}  e5 {[%clk 0:02:16]} 8. Nb5 {[%clk 0:02:59]}  Bxc5 {[%clk 0:01:34]} 9. Qxa5 {[%clk 0:02:53]}  Nxa5 {[%clk 0:01:35]} 10. Nc7+ {[%clk 0:02:54]}  Ke7 {[%clk 0:01:34]} 11. Bxe5 {[%clk 0:02:49]}  Ng4 {[%clk 0:01:32]} 12. Bg3 {[%clk 0:02:39]}  Nxf2 {[%clk 0:01:26]} 13. Bxf2 {[%clk 0:02:37]}  Bxf2 {[%clk 0:01:27]} 14. Nxa8 {[%clk 0:02:36]}  Bg4 {[%clk 0:01:26]} 15. Be2 {[%clk 0:02:31]}  Bxe2 {[%clk 0:01:26]} 16. Nxe2 {[%clk 0:02:32]}  Rxa8 {[%clk 0:01:26]} 17. Nc3 {[%clk 0:02:26]}  e3 {[%clk 0:01:11]} 18. Rd3 {[%clk 0:02:20]}  Nc4 {[%clk 0:01:06]} 19. Nd1 {[%clk 0:02:04]}  Ne5 {[%clk 0:00:35]} 20. Nxf2 {[%clk 0:02:04]}  exf2 {[%clk 0:00:36]} 21. Rd2 {[%clk 0:02:02]}  Rc8 {[%clk 0:00:33]} 22. Kb1 {[%clk 0:01:47]}  f6 {[%clk 0:00:31]} 23. Rxf2 {[%clk 0:01:46]}  h5 {[%clk 0:00:31]} 24. h3 {[%clk 0:01:45]}  Ke6 {[%clk 0:00:32]} 25. Rd1 {[%clk 0:01:43]}  h4 {[%clk 0:00:30]} 26. b3 {[%clk 0:01:40]}  g5 {[%clk 0:00:28]} 27. c4 {[%clk 0:01:37]}  Ng6 {[%clk 0:00:25]} 28. Re2+ {[%clk 0:01:37]}  Kf5 {[%clk 0:00:25]} 29. Rd5+ {[%clk 0:01:34]}  Ne5 {[%clk 0:00:24]} 30. Kc2 {[%clk 0:01:29]}  Ke6 {[%clk 0:00:24]} 31. Kc3 {[%clk 0:01:26]}  a6 {[%clk 0:00:24]} 32. a4 {[%clk 0:01:27]}  Rc7 {[%clk 0:00:21]} 33. a5 {[%clk 0:01:27]}  Rg7 {[%clk 0:00:21]} 34. Rd4 {[%clk 0:01:24]}  Rc7 {[%clk 0:00:18]} 35. b4 {[%clk 0:01:24]}  Kf5 {[%clk 0:00:16]} 36. Rf2+ {[%clk 0:01:23]}  Ke6 {[%clk 0:00:16]} 37. c5 {[%clk 0:01:23]}  Rc6 {[%clk 0:00:11]} 38. Rfd2 {[%clk 0:01:22]}  Nf7 {[%clk 0:00:08]} 39. Rd7 {[%clk 0:01:20]} 1-0


[Site "https://www.chess.com"]

[Event "Titled Tuesday Blitz May 23 Early 2023"]
[White "Paravyan, David"]
[Black "Bacrot, Etienne"]
[WhiteFideId "4194985"]
[BlackFideId "605506"]
[WhiteElo "2563"]
[BlackElo "2672"]
[Result "0-1"]
[Round "06"]
[TimeControl "180+2"]
[Date "2023.05.23"]
[WhiteClock "0:00:00"]
[BlackClock "0:00:06"]

1. e4 {[%clk 0:03:00]}  c5 {[%clk 0:03:00]} 2. Nf3 {[%clk 0:02:59]}  d6 {[%clk 0:03:01]} 3. d4 {[%clk 0:02:59]}  cxd4 {[%clk 0:03:01]} 4. Nxd4 {[%clk 0:03:00]}  Nf6 {[%clk 0:03:02]} 5. Nc3 {[%clk 0:03:00]}  Nc6 {[%clk 0:03:03]} 6. Be2 {[%clk 0:02:57]}  g6 {[%clk 0:03:01]} 7. Be3 {[%clk 0:02:55]}  Bg7 {[%clk 0:03:01]} 8. Qd2 {[%clk 0:02:55]}  Bd7 {[%clk 0:03:01]} 9. O-O-O {[%clk 0:02:46]}  Rc8 {[%clk 0:02:54]} 10. Kb1 {[%clk 0:02:44]}  a6 {[%clk 0:02:33]} 11. Bh6 {[%clk 0:02:32]}  Bxh6 {[%clk 0:02:25]} 12. Qxh6 {[%clk 0:02:33]}  Nxd4 {[%clk 0:02:25]} 13. Rxd4 {[%clk 0:02:33]}  Qb6 {[%clk 0:02:25]} 14. Rd3 {[%clk 0:01:34]}  Qxf2 {[%clk 0:02:19]} 15. Rf1 {[%clk 0:01:30]}  Qc5 {[%clk 0:01:57]} 16. g4 {[%clk 0:01:07]}  Bxg4 {[%clk 0:01:25]} 17. Bxg4 {[%clk 0:00:29]}  Nxg4 {[%clk 0:01:25]} 18. Qg7 {[%clk 0:00:30]}  Rf8 {[%clk 0:01:19]} 19. Qxh7 {[%clk 0:00:27]}  b5 {[%clk 0:01:01]} 20. Qh3 {[%clk 0:00:26]}  Ne5 {[%clk 0:00:53]} 21. Rd5 {[%clk 0:00:25]}  Qc6 {[%clk 0:00:45]} 22. a3 {[%clk 0:00:18]}  Nc4 {[%clk 0:00:36]} 23. Rd3 {[%clk 0:00:12]}  Ne5 {[%clk 0:00:34]} 24. Rd5 {[%clk 0:00:12]}  e6 {[%clk 0:00:33]} 25. Rd4 {[%clk 0:00:12]}  Qc5 {[%clk 0:00:20]} 26. Rfd1 {[%clk 0:00:11]}  Rc6 {[%clk 0:00:21]} 27. Qg2 {[%clk 0:00:06]}  a5 {[%clk 0:00:20]} 28. Qe2 {[%clk 0:00:05]}  Nc4 {[%clk 0:00:19]} 29. R1d3 {[%clk 0:00:02]}  b4 {[%clk 0:00:18]} 30. Na4 {[%clk 0:00:03]}  Qb5 {[%clk 0:00:16]} 31. axb4 {[%clk 0:00:03]}  Qxa4 {[%clk 0:00:12]} 32. Rc3 {[%clk 0:00:03]}  axb4 {[%clk 0:00:07]} 33. Rdxc4 {[%clk 0:00:02]}  Rxc4 {[%clk 0:00:04]} 34. Qxc4 {[%clk 0:00:03]}  Ke7 {[%clk 0:00:03]} 35. Qc7+ {[%clk 0:00:03]}  Qd7 {[%clk 0:00:03]} 36. Rc4 {[%clk 0:00:01]}  Qxc7 {[%clk 0:00:03]} 37. Rxc7+ {[%clk 0:00:02]}  Kf6 {[%clk 0:00:04]} 38. Rb7 {[%clk 0:00:03]}  Rh8 {[%clk 0:00:04]} 39. Rxb4 {[%clk 0:00:03]}  Rxh2 {[%clk 0:00:05]} 40. Ra4 {[%clk 0:00:01]}  g5 {[%clk 0:00:05]} 41. b3 {[%clk 0:00:01]}  g4 {[%clk 0:00:06]} 42. e5+ {[%clk 0:00:02]}  Kxe5 {[%clk 0:00:06]} 43. Rxg4 {[%clk 0:00:02]}  f5 {[%clk 0:00:07]} 44. Rg1 {[%clk 0:00:03]}  f4 {[%clk 0:00:07]} 45. Re1+ {[%clk 0:00:02]}  Kf5 {[%clk 0:00:08]} 46. b4 {[%clk 0:00:03]}  e5 {[%clk 0:00:08]} 47. Kc1 {[%clk 0:00:04]}  f3 {[%clk 0:00:08]} 48. b5 {[%clk 0:00:04]}  e4 {[%clk 0:00:08]} 49. b6 {[%clk 0:00:05]}  Kf4 {[%clk 0:00:05]} 50. b7 {[%clk 0:00:02]}  Rh8 {[%clk 0:00:06]} 51. Kd2 {[%clk 0:00:03]}  Rb8 {[%clk 0:00:06]} 52. Rb1 {[%clk 0:00:04]}  e3+ {[%clk 0:00:06]} 53. Kd3 {[%clk 0:00:02]}  e2 {[%clk 0:00:05]} 54. Kd2 {[%clk 0:00:02]}  Kg3 {[%clk 0:00:06]} 55. Rb5 {[%clk 0:00:02]}  Kf2 {[%clk 0:00:06]} 56. Rb1 {[%clk 0:00:00]}  Rxb7 {[%clk 0:00:06]} 0-1


[Site "https://www.chess.com"]

[Event "Titled Tuesday Blitz May 23 Early 2023"]
[White "Cordova, Emilio"]
[Black "Talibov, Shiroghlan"]
[WhiteFideId "3801497"]
[BlackFideId "13429078"]
[WhiteElo "2607"]
[BlackElo "2188"]
[Result "1/2-1/2"]
[Round "06"]
[TimeControl "180+2"]
[Date "2023.05.23"]
[WhiteClock "0:00:55"]
[BlackClock "0:01:45"]

1. d4 {[%clk 0:02:37]}  Nf6 {[%clk 0:02:57]} 2. Nf3 {[%clk 0:02:38]}  e6 {[%clk 0:02:57]} 3. c4 {[%clk 0:02:38]}  d5 {[%clk 0:02:57]} 4. Nc3 {[%clk 0:02:38]}  c5 {[%clk 0:02:58]} 5. e3 {[%clk 0:02:39]}  cxd4 {[%clk 0:02:56]} 6. exd4 {[%clk 0:02:38]}  Be7 {[%clk 0:02:52]} 7. Bd3 {[%clk 0:02:36]}  O-O {[%clk 0:02:52]} 8. O-O {[%clk 0:02:36]}  a6 {[%clk 0:02:50]} 9. cxd5 {[%clk 0:02:33]}  Nxd5 {[%clk 0:02:47]} 10. Qe2 {[%clk 0:02:33]}  Nc6 {[%clk 0:02:46]} 11. a3 {[%clk 0:02:27]}  Bf6 {[%clk 0:02:44]} 12. Be3 {[%clk 0:02:26]}  Re8 {[%clk 0:02:41]} 13. Ne4 {[%clk 0:02:25]}  e5 {[%clk 0:02:34]} 14. Nxf6+ {[%clk 0:02:19]}  Qxf6 {[%clk 0:02:35]} 15. dxe5 {[%clk 0:01:52]}  Nxe5 {[%clk 0:02:32]} 16. Nxe5 {[%clk 0:01:41]}  Qxe5 {[%clk 0:02:33]} 17. Rae1 {[%clk 0:01:26]}  Nxe3 {[%clk 0:02:25]} 18. Qxe3 {[%clk 0:01:17]}  Qxe3 {[%clk 0:02:25]} 19. Rxe3 {[%clk 0:01:18]}  Rxe3 {[%clk 0:02:25]} 20. fxe3 {[%clk 0:01:19]}  Be6 {[%clk 0:02:25]} 21. Rc1 {[%clk 0:01:19]}  Rc8 {[%clk 0:02:23]} 22. Rxc8+ {[%clk 0:01:18]}  Bxc8 {[%clk 0:02:24]} 23. Kf2 {[%clk 0:01:18]}  Kf8 {[%clk 0:02:24]} 24. e4 {[%clk 0:01:18]}  Ke7 {[%clk 0:02:21]} 25. Ke3 {[%clk 0:01:19]}  Kd6 {[%clk 0:02:20]} 26. Kd4 {[%clk 0:01:19]}  f6 {[%clk 0:02:20]} 27. h4 {[%clk 0:01:17]}  h6 {[%clk 0:02:19]} 28. b4 {[%clk 0:01:14]}  Bd7 {[%clk 0:02:15]} 29. g3 {[%clk 0:01:10]}  g5 {[%clk 0:02:14]} 30. Bc4 {[%clk 0:01:09]}  Bc6 {[%clk 0:02:09]} 31. Bb3 {[%clk 0:01:09]}  b6 {[%clk 0:02:07]} 32. Bc4 {[%clk 0:01:05]}  Bb5 {[%clk 0:02:04]} 33. Bd5 {[%clk 0:01:01]}  Bf1 {[%clk 0:02:01]} 34. Bb7 {[%clk 0:01:00]}  Bb5 {[%clk 0:01:49]} 35. Bc8 {[%clk 0:00:55]}  Bf1 {[%clk 0:01:45]} 1/2-1/2


[Site "https://www.chess.com"]

[Event "Titled Tuesday Blitz May 23 Early 2023"]
[White "Vakhlamov, Igor L."]
[Black "Kramnik, Vladimir"]
[WhiteFideId "24126748"]
[BlackFideId "4101588"]
[WhiteElo "2407"]
[BlackElo "2703"]
[Result "0-1"]
[Round "06"]
[TimeControl "180+2"]
[Date "2023.05.23"]
[WhiteClock "0:00:00"]
[BlackClock "0:00:07"]

1. e4 {[%clk 0:02:59]}  c5 {[%clk 0:02:59]} 2. Nf3 {[%clk 0:02:59]}  e6 {[%clk 0:02:59]} 3. Nc3 {[%clk 0:03:00]}  Nc6 {[%clk 0:02:58]} 4. d4 {[%clk 0:02:59]}  cxd4 {[%clk 0:02:58]} 5. Nxd4 {[%clk 0:03:00]}  Nf6 {[%clk 0:02:58]} 6. Ndb5 {[%clk 0:02:54]}  d6 {[%clk 0:02:57]} 7. Bf4 {[%clk 0:02:53]}  e5 {[%clk 0:02:58]} 8. Bg5 {[%clk 0:02:53]}  a6 {[%clk 0:02:58]} 9. Na3 {[%clk 0:02:53]}  b5 {[%clk 0:02:59]} 10. Nd5 {[%clk 0:02:54]}  Be7 {[%clk 0:02:58]} 11. Bxf6 {[%clk 0:02:54]}  Bxf6 {[%clk 0:02:59]} 12. c4 {[%clk 0:02:53]}  b4 {[%clk 0:02:57]} 13. Nc2 {[%clk 0:02:54]}  a5 {[%clk 0:02:56]} 14. b3 {[%clk 0:02:49]}  O-O {[%clk 0:02:53]} 15. g3 {[%clk 0:02:48]}  Bg5 {[%clk 0:02:41]} 16. h4 {[%clk 0:02:48]}  Bh6 {[%clk 0:02:41]} 17. Bh3 {[%clk 0:02:49]}  Be6 {[%clk 0:02:38]} 18. Kf1 {[%clk 0:02:48]}  Nb8 {[%clk 0:02:22]} 19. Kg2 {[%clk 0:02:44]}  Na6 {[%clk 0:02:21]} 20. Nce3 {[%clk 0:02:10]}  Bxe3 {[%clk 0:02:02]} 21. Nxe3 {[%clk 0:02:11]}  Nc5 {[%clk 0:02:01]} 22. Qf3 {[%clk 0:02:00]}  a4 {[%clk 0:02:01]} 23. Nc2 {[%clk 0:01:34]}  Qb8 {[%clk 0:01:50]} 24. h5 {[%clk 0:01:34]}  h6 {[%clk 0:01:35]} 25. Rhd1 {[%clk 0:01:05]}  Qb7 {[%clk 0:01:22]} 26. Bf5 {[%clk 0:00:23]}  axb3 {[%clk 0:01:18]} 27. axb3 {[%clk 0:00:23]}  Rxa1 {[%clk 0:01:18]} 28. Rxa1 {[%clk 0:00:20]}  Bxf5 {[%clk 0:01:17]} 29. exf5 {[%clk 0:00:21]}  Qxf3+ {[%clk 0:01:15]} 30. Kxf3 {[%clk 0:00:22]}  Nxb3 {[%clk 0:01:15]} 31. Rd1 {[%clk 0:00:21]}  Rb8 {[%clk 0:01:05]} 32. Rxd6 {[%clk 0:00:21]}  Na5 {[%clk 0:00:59]} 33. c5 {[%clk 0:00:14]}  b3 {[%clk 0:00:58]} 34. Na3 {[%clk 0:00:14]}  Rc8 {[%clk 0:00:38]} 35. Rd5 {[%clk 0:00:08]}  f6 {[%clk 0:00:38]} 36. Ke4 {[%clk 0:00:08]}  Nb7 {[%clk 0:00:37]} 37. Kd3 {[%clk 0:00:04]}  Nxc5+ {[%clk 0:00:35]} 38. Kc4 {[%clk 0:00:04]}  Ne4+ {[%clk 0:00:25]} 39. Kxb3 {[%clk 0:00:04]}  Rc3+ {[%clk 0:00:23]} 40. Kb4 {[%clk 0:00:04]}  Rf3 {[%clk 0:00:24]} 41. Nc4 {[%clk 0:00:04]}  Rxf5 {[%clk 0:00:18]} 42. Rd8+ {[%clk 0:00:04]}  Kh7 {[%clk 0:00:17]} 43. g4 {[%clk 0:00:05]}  Rf4 {[%clk 0:00:15]} 44. Kb5 {[%clk 0:00:03]}  Nxf2 {[%clk 0:00:14]} 45. Nb6 {[%clk 0:00:03]}  Nxg4 {[%clk 0:00:11]} 46. Nd7 {[%clk 0:00:04]}  g5 {[%clk 0:00:11]} 47. Nf8+ {[%clk 0:00:03]}  Kg7 {[%clk 0:00:10]} 48. Ne6+ {[%clk 0:00:04]}  Kf7 {[%clk 0:00:10]} 49. Nxf4 {[%clk 0:00:05]}  gxf4 {[%clk 0:00:10]} 50. Kc4 {[%clk 0:00:05]}  e4 {[%clk 0:00:10]} 51. Kd4 {[%clk 0:00:05]}  f3 {[%clk 0:00:10]} 52. Ra8 {[%clk 0:00:02]}  f2 {[%clk 0:00:09]} 53. Ra1 {[%clk 0:00:03]}  Nh2 {[%clk 0:00:09]} 54. Kxe4 {[%clk 0:00:01]}  f1=Q {[%clk 0:00:09]} 55. Ra7+ {[%clk 0:00:01]}  Ke6 {[%clk 0:00:08]} 56. Ra6+ {[%clk 0:00:00]}  Qxa6 {[%clk 0:00:07]} 0-1


[Site "https://www.chess.com"]

[Event "Titled Tuesday Blitz May 23 Early 2023"]
[White "Svane, Rasmus"]
[Black "Seo, Jung Min"]
[WhiteFideId "4657101"]
[BlackFideId "1734687"]
[WhiteElo "2601"]
[BlackElo "2468"]
[Result "1-0"]
[Round "06"]
[TimeControl "180+2"]
[Date "2023.05.23"]
[WhiteClock "0:00:07"]
[BlackClock "0:00:00"]

1. Nf3 {[%clk 0:02:58]}  Nf6 {[%clk 0:03:00]} 2. g3 {[%clk 0:02:58]}  g6 {[%clk 0:03:01]} 3. Bg2 {[%clk 0:02:59]}  Bg7 {[%clk 0:03:01]} 4. O-O {[%clk 0:03:00]}  O-O {[%clk 0:03:02]} 5. d4 {[%clk 0:03:01]}  d6 {[%clk 0:03:01]} 6. Re1 {[%clk 0:03:01]}  Bf5 {[%clk 0:02:59]} 7. Nbd2 {[%clk 0:02:59]}  Nc6 {[%clk 0:02:55]} 8. e4 {[%clk 0:02:57]}  Bg4 {[%clk 0:02:54]} 9. h3 {[%clk 0:02:54]}  Bc8 {[%clk 0:02:53]} 10. d5 {[%clk 0:02:53]}  Nb8 {[%clk 0:02:52]} 11. Nb3 {[%clk 0:02:30]}  e5 {[%clk 0:02:49]} 12. dxe6 {[%clk 0:02:30]}  Bxe6 {[%clk 0:02:48]} 13. Nfd4 {[%clk 0:02:25]}  Bd7 {[%clk 0:02:46]} 14. e5 {[%clk 0:02:22]}  dxe5 {[%clk 0:02:45]} 15. Bxb7 {[%clk 0:02:22]}  exd4 {[%clk 0:02:39]} 16. Bxa8 {[%clk 0:02:22]}  Bxh3 {[%clk 0:02:39]} 17. Qxd4 {[%clk 0:02:17]}  Nbd7 {[%clk 0:02:31]} 18. Bg2 {[%clk 0:02:14]}  Ng4 {[%clk 0:02:30]} 19. Qf4 {[%clk 0:01:49]}  Bh6 {[%clk 0:02:23]} 20. Qd4 {[%clk 0:01:35]}  Bg7 {[%clk 0:02:19]} 21. Qd2 {[%clk 0:01:33]}  Bxg2 {[%clk 0:02:16]} 22. Kxg2 {[%clk 0:01:34]}  Qa8+ {[%clk 0:02:07]} 23. f3 {[%clk 0:01:32]}  Nde5 {[%clk 0:02:03]} 24. Qf4 {[%clk 0:01:16]}  f5 {[%clk 0:01:57]} 25. Rf1 {[%clk 0:01:02]}  Re8 {[%clk 0:01:35]} 26. Bd2 {[%clk 0:00:53]}  Qd5 {[%clk 0:01:10]} 27. Rae1 {[%clk 0:00:43]}  Bh6 {[%clk 0:00:59]} 28. Qb4 {[%clk 0:00:32]}  c5 {[%clk 0:00:58]} 29. Qc3 {[%clk 0:00:31]}  Bg7 {[%clk 0:00:52]} 30. Qxc5 {[%clk 0:00:28]}  Qa8 {[%clk 0:00:52]} 31. Kh3 {[%clk 0:00:27]}  Rc8 {[%clk 0:00:50]} 32. Qd6 {[%clk 0:00:22]}  h5 {[%clk 0:00:41]} 33. fxg4 {[%clk 0:00:18]}  hxg4+ {[%clk 0:00:36]} 34. Kh2 {[%clk 0:00:17]}  Nf3+ {[%clk 0:00:32]} 35. Rxf3 {[%clk 0:00:16]}  Qxf3 {[%clk 0:00:33]} 36. Qf4 {[%clk 0:00:11]}  Rxc2 {[%clk 0:00:31]} 37. Qxf3 {[%clk 0:00:11]}  gxf3 {[%clk 0:00:30]} 38. Rf1 {[%clk 0:00:08]}  Rxb2 {[%clk 0:00:30]} 39. Kh3 {[%clk 0:00:08]}  Rxa2 {[%clk 0:00:26]} 40. Rxf3 {[%clk 0:00:08]}  Rb2 {[%clk 0:00:20]} 41. Rd3 {[%clk 0:00:08]}  Bf6 {[%clk 0:00:19]} 42. Nc5 {[%clk 0:00:07]}  g5 {[%clk 0:00:19]} 43. g4 {[%clk 0:00:07]}  fxg4+ {[%clk 0:00:19]} 44. Kxg4 {[%clk 0:00:08]}  Rc2 {[%clk 0:00:18]} 45. Ne4 {[%clk 0:00:08]}  Be7 {[%clk 0:00:19]} 46. Kf5 {[%clk 0:00:08]}  Rc6 {[%clk 0:00:18]} 47. Rd7 {[%clk 0:00:08]}  Kf8 {[%clk 0:00:18]} 48. Bc3 {[%clk 0:00:06]}  a6 {[%clk 0:00:15]} 49. Ra7 {[%clk 0:00:06]}  g4 {[%clk 0:00:13]} 50. Kxg4 {[%clk 0:00:06]}  Ke8 {[%clk 0:00:11]} 51. Kf5 {[%clk 0:00:07]}  Kf8 {[%clk 0:00:11]} 52. Be5 {[%clk 0:00:07]}  Ke8 {[%clk 0:00:11]} 53. Nc3 {[%clk 0:00:07]}  Rc5 {[%clk 0:00:08]} 54. Ke6 {[%clk 0:00:06]}  Rc6+ {[%clk 0:00:08]} 55. Kf5 {[%clk 0:00:07]}  Rc5 {[%clk 0:00:08]} 56. Ke4 {[%clk 0:00:08]}  Rc4+ {[%clk 0:00:06]} 57. Kd3 {[%clk 0:00:08]}  Rc5 {[%clk 0:00:06]} 58. Bd4 {[%clk 0:00:08]}  Rc6 {[%clk 0:00:06]} 59. Nd5 {[%clk 0:00:07]}  Bd8 {[%clk 0:00:07]} 60. Ke4 {[%clk 0:00:07]}  Re6+ {[%clk 0:00:07]} 61. Kf5 {[%clk 0:00:07]}  Rd6 {[%clk 0:00:07]} 62. Ke5 {[%clk 0:00:07]}  Rc6 {[%clk 0:00:08]} 63. Bc3 {[%clk 0:00:05]}  a5 {[%clk 0:00:07]} 64. Bd4 {[%clk 0:00:05]}  Rg6 {[%clk 0:00:06]} 65. Kf5 {[%clk 0:00:05]}  Rd6 {[%clk 0:00:06]} 66. Ke4 {[%clk 0:00:05]}  Rc6 {[%clk 0:00:06]} 67. Nf4 {[%clk 0:00:04]}  Rd6 {[%clk 0:00:06]} 68. Be5 {[%clk 0:00:05]}  Rc6 {[%clk 0:00:06]} 69. Kd5 {[%clk 0:00:05]}  Rb6 {[%clk 0:00:06]} 70. Ne6 {[%clk 0:00:06]}  Be7 {[%clk 0:00:01]} 71. Rxa5 {[%clk 0:00:06]}  Rb7 {[%clk 0:00:01]} 72. Ra6 {[%clk 0:00:06]}  Rd7+ {[%clk 0:00:02]} 73. Ke4 {[%clk 0:00:06]}  Kf7 {[%clk 0:00:02]} 74. Nf4 {[%clk 0:00:06]}  Rd8 {[%clk 0:00:02]} 75. Kf5 {[%clk 0:00:07]}  Ke8 {[%clk 0:00:02]} 76. Ra7 {[%clk 0:00:07]}  Rd6 {[%clk 0:00:00]} 77. Bxd6 {[%clk 0:00:07]} 1-0


[Site "https://www.chess.com"]